bitfinex-derivatives/quotes_BTCF0:USTF0_20240824
["timestamp","ask_amount","ask_price","bid_price","bid_amount"]
[1724539579684,0.07814,63959.0,63958.0,0.00023445]
[1724539579878,0.17814,63959.0,63958.0,0.00023445]
[1724539580483,0.17818,63959.0,63958.0,0.00023445]
[1724539580888,0.18518,63959.0,63958.0,0.00023445]
[1724539581884,0.54598,63959.0,63958.0,0.00023445]
[1724539582289,0.44598,63959.0,63958.0,0.00023445]
[1724539582495,0.55798,63959.0,63958.0,0.00023445]
[1724539582888,0.54798,63959.0,63958.0,0.00023445]
[1724539583087,0.55898,63959.0,63958.0,0.00023445]
[1724539583489,0.55798,63959.0,63958.0,0.00023445]
[1724539583685,0.55698,63959.0,63958.0,0.00023445]
[1724539584188,0.55698,63959.0,63949.0,0.140752]
[1724539584189,0.07815,63951.0,63949.0,0.0626]
[1724539584488,0.00012031,63950.0,63949.0,0.0626]
[1724539585093,0.00016031,63950.0,63949.0,0.0626]
[1724539585997,0.07831131,63950.0,63949.0,0.0626]
[1724539586192,0.08031131,63950.0,63949.0,0.001]
[1724539588688,0.078155,63947.0,63943.0,0.00023445]
[1724539588889,0.1,63944.0,63943.0,0.00023445]
[1724539589594,0.10004,63944.0,63943.0,0.00023445]
[1724539589999,0.10104,63944.0,63943.0,0.00123445]
[1724539590299,0.179198,63944.0,63943.0,0.00123445]
[1724539590494,0.180198,63944.0,63943.0,0.00123445]
[1724539599704,0.258356,63944.0,63943.0,0.00123445]
[1724539599910,0.258356,63944.0,63933.0,0.04648328]
[1724539599911,0.1,63939.0,63933.0,0.04648328]
[1724539600099,0.07817,63934.0,63931.0,0.40728328]
[1724539600294,0.1,63932.0,63931.0,0.3608]
[1724539600695,0.00014558,63933.0,63931.0,0.3608]
[1724539600696,0.00014558,63933.0,63932.0,0.078173]
[1724539600895,0.0016,63937.0,63936.0,0.078168]
[1724539601109,0.1,63937.0,63936.0,0.078168]
[1724539601808,0.10005209,63937.0,63936.0,0.139208]
[1724539602113,0.10005209,63937.0,63936.0,0.18569207]
[1724539602302,0.10205209,63937.0,63936.0,0.18669207]
[1724539602901,0.10005209,63937.0,63936.0,0.140208]
[1724539604202,0.10005209,63937.0,63936.0,0.501008]
[1724539604409,0.10105209,63937.0,63936.0,0.500008]
[1724539604601,0.10205209,63937.0,63936.0,0.501008]
[1724539612207,0.10205209,63937.0,63936.0,0.56299964]
[1724539613313,0.10205209,63937.0,63936.0,0.501008]
[1724539614412,0.18021909,63937.0,63936.0,0.42284]
[1724539614613,0.18021909,63937.0,63936.0,0.36184]
[1724539617023,0.18021909,63937.0,63936.0,0.42383164]
[1724539617213,0.18021909,63937.0,63936.0,0.36184]
[1724539620919,0.400142,63958.0,63947.0,0.078154]
[1724539621119,0.400142,63958.0,63936.0,0.95014222]
[1724539621120,0.078156,63946.0,63945.0,0.06218254]
[1724539621313,0.078156,63946.0,63943.0,0.3616]
[1724539621314,0.078158,63944.0,63943.0,0.3616]
[1724539621518,0.078158,63944.0,63943.0,0.42300824]
[1724539621815,0.078158,63944.0,63943.0,0.3608]
[1724539622020,0.078198,63944.0,63943.0,0.3608]
[1724539622220,0.138498,63944.0,63943.0,0.3608]
[1724539623121,0.138498,63944.0,63943.0,0.04667086]
[1724539623526,0.1488656,63944.0,63943.0,0.04667086]
[1724539623729,0.1518656,63944.0,63943.0,0.04667086]
[1724539624019,0.0737076,63944.0,63942.0,0.04667086]
[1724539624225,0.178159,63943.0,63942.0,0.04667086]
[1724539624826,0.078163,63940.0,63939.0,0.06220824]
[1724539625031,0.178163,63940.0,63939.0,0.06220824]
[1724539625514,0.178203,63940.0,63939.0,0.06220824]
[1724539627124,0.178203,63940.0,63939.0,0.06320824]
[1724539627324,0.178203,63940.0,63939.0,0.001]
[1724539628021,0.178203,63940.0,63939.0,0.002]
[1724539630031,0.078203,63940.0,63939.0,0.002]
[1724539630325,0.178203,63940.0,63939.0,0.002]
[1724539639724,4e-05,63940.0,63939.0,0.02643842]
[1724539639927,4e-05,63940.0,63939.0,0.10460242]
[1724539639928,0.10004,63940.0,63939.0,0.10460242]
[1724539645225,0.178203,63940.0,63939.0,0.10460242]
[1724539645836,0.178203,63940.0,63939.0,0.10460192]
[1724539647145,0.178203,63940.0,63939.0,0.02643792]
[1724539649232,0.178203,63940.0,63939.0,0.002]
[1724539649430,0.178203,63940.0,63939.0,0.02643874]
[1724539649830,0.539003,63940.0,63939.0,0.02643874]
[1724539650034,0.539003,63940.0,63939.0,0.002]
[1724539652238,0.617166,63940.0,63939.0,0.002]
[1724539657144,0.256366,63940.0,63939.0,0.002]
[1724539662657,0.178203,63940.0,63936.0,4e-05]
[1724539662855,0.256334,63937.0,63936.0,4e-05]
[1724539663054,0.156334,63937.0,63936.0,4e-05]
[1724539663553,0.256374,63937.0,63936.0,4e-05]
[1724539663856,0.256374,63937.0,63936.0,0.00104]
[1724539664453,0.256374,63937.0,63936.0,0.00204]
[1724539664454,0.257374,63937.0,63936.0,0.00204]
[1724539664655,0.258374,63937.0,63936.0,0.00204]
[1724539665861,0.619174,63937.0,63936.0,0.00204]
[1724539666855,0.62948563,63937.0,63936.0,0.00204]
[1724539667557,0.62948563,63937.0,63930.0,0.00015628]
[1724539667558,0.156348,63931.0,63930.0,0.00015628]
[1724539667759,0.617148,63931.0,63930.0,0.00015628]
[1724539667958,1.086388,63931.0,63930.0,0.00015628]
[1724539668263,1.086428,63931.0,63930.0,0.00015628]
[1724539668758,0.738088,63931.0,63930.0,0.00015628]
[1724539669671,0.738088,63931.0,63930.0,0.00115628]
[1724539669672,0.740088,63931.0,63930.0,0.00115628]
[1724539671466,0.603414,63931.0,63930.0,0.00115628]
[1724539672565,0.541014,63931.0,63930.0,0.00115628]
[1724539673658,0.180214,63931.0,63930.0,0.00115628]
[1724539680163,0.080214,63931.0,63930.0,0.00115628]
[1724539680364,0.180214,63931.0,63930.0,0.00115628]
[1724539680767,0.180214,63931.0,63930.0,0.04781052]
[1724539681058,0.180214,63931.0,63930.0,0.00115628]
[1724539684673,0.258388,63931.0,63930.0,0.00115628]
[1724539686867,0.619188,63931.0,63930.0,0.00115628]
[1724539689879,0.441014,63931.0,63930.0,0.00115628]
[1724539690080,0.541014,63931.0,63930.0,0.00115628]
[1724539691374,0.541014,63931.0,63923.0,0.00056]
[1724539691375,0.078181,63925.0,63923.0,0.00056]
[1724539691576,0.178181,63925.0,63923.0,0.00056]
[1724539692080,4e-05,63924.0,63923.0,0.00056]
[1724539692687,4e-05,63924.0,63923.0,0.04727782]
[1724539692988,0.078222,63924.0,63923.0,0.04727782]
[1724539693172,0.156404,63924.0,63923.0,0.04727782]
[1724539693875,0.157404,63924.0,63923.0,0.04727782]
[1724539694075,0.157404,63924.0,63923.0,0.00056]
[1724539695682,0.158404,63924.0,63923.0,0.00056]
[1724539697286,0.518204,63924.0,63923.0,0.00056]
[1724539697481,0.519204,63924.0,63923.0,0.00056]
[1724539697986,0.158404,63924.0,63923.0,0.00056]
[1724539698285,0.5294876,63924.0,63923.0,0.00056]
[1724539698482,0.1686876,63924.0,63923.0,0.00056]
[1724539698682,0.5294876,63924.0,63923.0,0.00056]
[1724539698882,0.5284876,63924.0,63923.0,0.00056]
[1724539699184,0.5294876,63924.0,63923.0,0.00056]
[1724539699589,0.1686876,63924.0,63923.0,0.00056]
[1724539699797,0.5294876,63924.0,63923.0,0.00056]
[1724539703900,0.5513056,63924.0,63923.0,0.00056]
[1724539705492,0.1905056,63924.0,63923.0,0.00056]
[1724539707494,0.0123236,63924.0,63923.0,0.00056]
[1724539707690,0.10204,63924.0,63923.0,0.14095501]
[1724539707891,0.180222,63924.0,63923.0,0.06277101]
[1724539708096,0.180222,63924.0,63923.0,0.00056]
[1724539718003,0.180222,63924.0,63923.0,0.04727101]
[1724539718597,0.180222,63924.0,63923.0,0.04727491]
[1724539718797,0.180222,63924.0,63923.0,0.00056]
[1724539719704,0.080222,63924.0,63923.0,0.04727426]
[1724539719907,0.180222,63924.0,63923.0,0.00056]
[1724539720703,0.180222,63924.0,63923.0,0.04727141]
[1724539720905,0.180222,63924.0,63923.0,0.00056]
[1724539723013,0.180222,63924.0,63923.0,0.04725492]
[1724539724515,0.180222,63924.0,63923.0,0.00056]
[1724539724809,0.180222,63924.0,63923.0,0.04725492]
[1724539725012,0.180222,63924.0,63923.0,0.00056]
[1724539725309,0.180222,63924.0,63923.0,0.04725492]
[1724539725515,0.180222,63924.0,63923.0,0.00056]
[1724539727217,0.00152,63935.0,63923.0,1.33068]
[1724539727418,0.1,63956.0,63949.0,0.078151]
[1724539727619,0.1,63956.0,63930.0,0.078175]
[1724539727620,0.1,63956.0,63955.0,0.3608]
[1724539727809,0.1,63956.0,63955.0,0.42298889]
[1724539728014,0.3608,63976.0,63955.0,0.42298889]
[1724539728015,0.1,63959.0,63955.0,0.82988]
[1724539728214,0.1,63959.0,63956.0,0.04649069]
[1724539728510,0.00023464,63964.0,63956.0,0.04649069]
[1724539728710,0.00023464,63964.0,63959.0,0.078139]
[1724539729116,0.00023464,63964.0,63963.0,0.3608]
[1724539729414,0.00023464,63964.0,63955.0,0.43853612]
[1724539729415,0.00023464,63964.0,63955.0,0.3616]
[1724539729615,0.083141,63959.0,63955.0,0.40729069]
[1724539729820,0.083141,63959.0,63955.0,0.3608]
[1724539730015,0.3608,63956.0,63951.0,0.00023464]
[1724539730219,0.078146,63954.0,63951.0,0.00023464]
[1724539730623,0.24,63955.0,63952.0,0.3608]
[1724539732125,0.078141,63958.0,63952.0,0.3608]
[1724539732512,0.078141,63958.0,63952.0,0.3658]
[1724539733430,0.078141,63958.0,63952.0,0.3728]
[1724539733721,0.001,63955.0,63952.0,0.3728]
[1724539734523,0.08806868,63958.0,63952.0,0.3658]
[1724539734725,0.08906868,63958.0,63952.0,0.3728]
[1724539735227,0.08906868,63958.0,63952.0,0.3678]
[1724539735423,0.001,63955.0,63952.0,0.3738]
[1724539736124,0.08906868,63958.0,63952.0,0.3738]
[1724539736125,0.09006868,63958.0,63952.0,0.3738]
[1724539736514,0.09006868,63958.0,63952.0,0.3678]
[1724539736725,0.001,63955.0,63952.0,0.3738]
[1724539736927,0.001,63955.0,63952.0,0.451948]
[1724539737122,0.002,63955.0,63952.0,0.451948]
[1724539737421,0.002,63955.0,63953.0,0.078147]
[1724539738221,0.001,63955.0,63953.0,0.078147]
[1724539738418,0.01092768,63958.0,63953.0,0.078147]
[1724539738620,0.001,63955.0,63953.0,0.084147]
[1724539739023,0.001,63955.0,63953.0,0.089147]
[1724539739218,0.001,63955.0,63953.0,0.011]
[1724539739419,0.001,63955.0,63954.0,0.078146]
[1724539739730,0.001,63955.0,63953.0,0.011]
[1724539739926,0.001,63955.0,63953.0,0.005]
[1724539740225,0.25004372,63961.0,63953.0,0.005]
[1724539740226,0.001,63958.0,63953.0,0.011]
[1724539740620,0.078142,63957.0,63953.0,0.011]
[1724539740817,0.001,63955.0,63953.0,0.011]
[1724539742623,0.001,63955.0,63953.0,0.006]
[1724539742920,0.001,63955.0,63953.0,0.011]
[1724539743322,0.001,63955.0,63953.0,0.005]
[1724539743527,0.078142,63957.0,63953.0,0.011]
[1724539743528,0.078146,63954.0,63953.0,0.011]
[1724539744929,0.078146,63954.0,63953.0,0.005]
[1724539745221,0.079146,63954.0,63953.0,0.006]
[1724539745427,0.079146,63954.0,63953.0,0.011]
[1724539747329,0.08920892,63954.0,63953.0,0.011]
[1724539747532,0.08920892,63954.0,63953.0,0.3718]
[1724539748631,0.001,63954.0,63953.0,0.449947]
[1724539749125,0.001,63954.0,63953.0,0.449987]
[1724539753640,0.001,63954.0,63953.0,1.319067]
[1724539754333,0.08828365,63962.0,63953.0,1.24092]
[1724539754531,0.18828365,63962.0,63959.0,0.3608]
[1724539754833,0.10023464,63964.0,63959.0,0.4608]
[1724539755032,0.10023464,63964.0,63961.0,4e-05]
[1724539755835,0.1,63962.0,63959.0,0.439779]
[1724539756036,0.078138,63960.0,63959.0,0.438939]
[1724539756933,0.178138,63960.0,63959.0,0.438939]
[1724539757436,0.178138,63960.0,63959.0,1.007979]
[1724539757437,0.002,63960.0,63959.0,1.007979]
[1724539758137,0.002,63960.0,63959.0,1.407979]
[1724539758335,0.002,63960.0,63959.0,1.48571512]
[1724539758643,0.002,63960.0,63959.0,0.98571512]
[1724539758843,0.002,63960.0,63959.0,1.50477]
[1724539759139,0.002,63960.0,63959.0,1.42703388]
[1724539759539,0.002,63960.0,63959.0,1.02703388]
[1724539760330,0.00023464,63964.0,63963.0,0.078135]
[1724539761940,0.00023464,63964.0,63963.0,0.438935]
[1724539762434,0.00623464,63964.0,63963.0,0.908935]
[1724539762638,0.01123464,63964.0,63963.0,1.02798114]
[1724539763138,0.01123464,63964.0,63963.0,1.1053648]
[1724539763636,0.01123464,63964.0,63963.0,1.42798114]
[1724539764244,0.01123464,63964.0,63963.0,1.50534421]
[1724539765333,0.01123464,63964.0,63963.0,1.42798114]
[1724539766938,0.00623464,63964.0,63963.0,1.43898114]
[1724539768235,0.00123464,63964.0,63963.0,1.43898114]
[1724539768440,0.00123464,63964.0,63963.0,1.45098114]
[1724539768441,0.00223464,63964.0,63963.0,1.45098114]
[1724539769047,0.00123464,63964.0,63963.0,1.43898114]
[1724539769235,0.00123464,63964.0,63963.0,1.45098114]
[1724539769236,0.00223464,63964.0,63963.0,1.45098114]
[1724539769633,0.00123464,63964.0,63963.0,1.43898114]
[1724539769839,0.00223464,63964.0,63963.0,1.45098114]
[1724539770736,0.134722,63974.0,63963.0,1.45098114]
[1724539770737,0.134722,63974.0,63971.0,0.078124]
[1724539770947,0.14465951,63974.0,63973.0,0.3608]
[1724539771834,0.14465951,63974.0,63973.0,0.438922]
[1724539772237,0.06653751,63974.0,63973.0,0.438922]
[1724539772541,0.02745889,63974.0,63973.0,0.438922]
[1724539772746,0.02745889,63974.0,63973.0,0.440922]
[1724539773047,0.02745889,63974.0,63973.0,0.441922]
[1724539773449,0.02745889,63974.0,63973.0,0.440922]
[1724539773744,0.02745889,63974.0,63973.0,0.48830475]
[1724539773941,0.02745889,63974.0,63973.0,0.50376567]
[1724539774137,0.00993751,63974.0,63973.0,0.50376567]
[1724539774334,0.134618,63977.0,63974.0,0.078121]
[1724539775046,0.06854458,63975.0,63974.0,0.078121]
[1724539775542,0.06854458,63975.0,63974.0,0.079121]
[1724539778347,0.06854458,63975.0,63974.0,0.079161]
[1724539780653,0.16854458,63975.0,63974.0,0.079161]
[1724539781038,0.16854458,63975.0,63974.0,0.078161]
[1724539781247,0.16854458,63975.0,63974.0,0.079161]
[1724539781953,0.16854458,63975.0,63967.0,0.00023464]
[1724539781954,0.078128,63968.0,63967.0,0.00023464]
[1724539782141,0.44678724,63968.0,63967.0,0.00023464]
[1724539783148,1.31578724,63968.0,63967.0,0.00023464]
[1724539783455,0.078134,63964.0,63959.0,0.078139]
[1724539783653,0.1,63960.0,63959.0,0.078139]
[1724539784466,0.0594,63963.0,63959.0,0.078139]
[1724539784948,0.055,63962.0,63959.0,0.079139]
[1724539785748,0.055,63962.0,63959.0,0.078139]
[1724539785949,0.055,63962.0,63959.0,0.079139]
[1724539786152,0.055,63962.0,63959.0,0.081139]
[1724539786359,0.1117,63962.0,63959.0,0.081139]
[1724539786546,0.1117,63962.0,63959.0,0.079139]
[1724539788859,0.1117,63962.0,63959.0,0.080139]
[1724539789553,0.1117,63962.0,63959.0,0.12653854]
[1724539789749,0.189836,63962.0,63959.0,0.081139]
[1724539789948,0.189836,63962.0,63959.0,0.12753854]
[1724539790564,0.01034115,63963.0,63960.0,0.12453754]
[1724539790758,0.36211464,63966.0,63960.0,0.078138]
[1724539790957,0.36103464,63966.0,63960.0,0.078138]
[1724539791467,0.078096,63962.0,63960.0,0.078138]
[1724539791862,0.078096,63962.0,63960.0,0.079138]
[1724539797768,0.078137,63961.0,63960.0,0.079138]
[1724539798865,0.078137,63961.0,63960.0,0.078138]
[1724539799072,0.078137,63961.0,63960.0,0.079138]
[1724539801264,0.078137,63961.0,63960.0,0.001]
[1724539801464,0.078137,63961.0,63956.0,0.40719954]
[1724539801465,0.078142,63957.0,63956.0,0.04639954]
[1724539801668,0.3608,63957.0,63953.0,0.00023464]
[1724539801870,0.078146,63954.0,63953.0,0.00023464]
[1724539803663,0.078146,63954.0,63953.0,0.00623464]
[1724539804263,0.439946,63954.0,63953.0,0.01323464]
[1724539804471,0.539946,63954.0,63953.0,0.01323464]
[1724539805768,0.539946,63954.0,63953.0,0.00723464]
[1724539805967,0.540946,63954.0,63953.0,0.01323464]
[1724539806566,0.55114675,63954.0,63953.0,0.01323464]
[1724539806971,0.19034675,63954.0,63953.0,0.01323464]
[1724539807277,0.55114675,63954.0,63953.0,0.01323464]
[1724539807575,0.19034675,63954.0,63953.0,0.01323464]
[1724539807962,0.55114675,63954.0,63953.0,0.01323464]
[1724539808669,0.19034675,63954.0,63953.0,0.01323464]
[1724539808869,0.55114675,63954.0,63953.0,0.01323464]
[1724539809072,0.19034675,63954.0,63953.0,0.01323464]
[1724539809274,0.55114675,63954.0,63953.0,0.01323464]
[1724539810784,0.45114675,63954.0,63953.0,0.01323464]
[1724539810974,0.11220075,63954.0,63953.0,0.01323464]
[1724539811785,0.19034675,63954.0,63953.0,0.01323464]
[1724539812281,0.19034675,63954.0,63953.0,0.09138164]
[1724539812485,0.002,63954.0,63953.0,0.09138164]
[1724539812685,0.102,63954.0,63953.0,0.09138164]
[1724539814481,0.002,63954.0,63953.0,0.09138164]
[1724539814682,0.002,63954.0,63953.0,0.15322531]
[1724539814989,0.002,63954.0,63953.0,0.56046164]
[1724539815377,0.002,63954.0,63953.0,0.63776623]
[1724539815683,0.002,63954.0,63953.0,1.16718768]
[1724539815985,0.002,63954.0,63953.0,1.08988309]
[1724539817287,0.002,63954.0,63953.0,1.45068309]
[1724539817795,0.1,63963.0,63960.0,0.078138]
[1724539818093,0.1,63963.0,63962.0,0.04648215]
[1724539818598,0.1,63963.0,63962.0,0.04652215]
[1724539819783,0.101,63963.0,63962.0,0.12465815]
[1724539820188,0.1,63963.0,63962.0,0.12465815]
[1724539820490,0.106,63963.0,63962.0,0.12465815]
[1724539820689,0.1161708,63963.0,63962.0,0.078176]
[1724539820896,0.1151708,63963.0,63962.0,0.078176]
[1724539821194,0.1141708,63963.0,63962.0,0.078176]
[1724539821794,0.1923058,63963.0,63962.0,0.078176]
[1724539826292,0.1923058,63963.0,63962.0,0.12465904]
[1724539828396,0.1923058,63963.0,63962.0,0.078176]
[1724539830800,0.1923058,63963.0,63962.0,4e-05]
[1724539831096,0.1923058,63963.0,63962.0,0.04652059]
[1724539831495,0.1923058,63963.0,63962.0,4e-05]
[1724539833294,0.1923058,63963.0,63958.0,0.3616]
[1724539833295,0.078136,63962.0,63958.0,0.3616]
[1724539833509,0.078136,63962.0,63953.0,0.04672863]
[1724539833510,0.1,63959.0,63953.0,0.04672863]
[1724539833797,0.1,63954.0,63953.0,0.00023464]
[1724539834396,0.10004,63954.0,63953.0,0.00023464]
[1724539834801,0.178186,63954.0,63953.0,0.00023464]
[1724539835099,0.178186,63954.0,63953.0,0.05372863]
[1724539835100,0.179186,63954.0,63953.0,0.05372863]
[1724539835601,0.180186,63954.0,63953.0,0.06072863]
[1724539836197,0.180186,63954.0,63953.0,0.06077134]
[1724539836398,0.180186,63954.0,63953.0,0.01423464]
[1724539837300,0.18954798,63954.0,63953.0,0.00723464]
[1724539837500,0.19054798,63954.0,63953.0,0.01323464]
[1724539838805,0.55134798,63954.0,63953.0,0.01323464]
[1724539848111,0.62949398,63954.0,63953.0,0.01323464]
[1724539849916,0.26869398,63954.0,63953.0,0.01323464]
[1724539850117,0.62949398,63954.0,63953.0,0.01323464]
[1724539851410,0.19054798,63954.0,63953.0,0.01323464]
[1724539852013,0.19054798,63954.0,63953.0,0.05977134]
[1724539853001,0.19054798,63954.0,63953.0,0.01323464]
[1724539853406,0.19054798,63954.0,63953.0,0.05977134]
[1724539853811,0.19054798,63954.0,63953.0,0.01323464]
[1724539856010,0.19054798,63954.0,63953.0,0.42057134]
[1724539856214,0.19054798,63954.0,63953.0,0.37403464]
[1724539857017,0.19054798,63954.0,63953.0,0.42059352]
[1724539857422,0.19054798,63954.0,63953.0,0.37403464]
[1724539857619,0.19054798,63954.0,63953.0,0.01323464]
[1724539857921,0.19054798,63954.0,63953.0,0.05980163]
[1724539858921,0.19054798,63954.0,63953.0,0.01323464]
[1724539859819,0.19054798,63954.0,63953.0,0.05982159]
[1724539860121,0.19054798,63954.0,63953.0,0.01323464]
[1724539863425,0.19054798,63954.0,63953.0,0.07521084]
[1724539865627,0.26869398,63954.0,63953.0,0.01323464]
[1724539865813,0.26869398,63954.0,63953.0,0.05984898]
[1724539866018,0.26869398,63954.0,63945.0,0.04662739]
[1724539866019,1.05962798,63954.0,63945.0,0.04662739]
[1724539866314,0.078158,63944.0,63943.0,0.04662739]
[1724539866519,0.178158,63944.0,63938.0,0.04662739]
[1724539866721,0.3608,63940.0,63938.0,0.04662739]
[1724539867228,0.078204,63939.0,63938.0,0.04662739]
[1724539867523,0.078165,63938.0,63937.0,0.14122739]
[1724539867732,0.178165,63938.0,63937.0,0.14122739]
[1724539868116,0.178165,63938.0,63937.0,0.0946]
[1724539868317,0.178205,63938.0,63937.0,0.14122739]
[1724539868517,0.178205,63938.0,63937.0,0.0946]
[1724539868929,0.179205,63938.0,63937.0,0.014]
[1724539869529,0.180205,63938.0,63937.0,0.014]
[1724539872028,0.19027329,63938.0,63937.0,0.014]
[1724539883740,0.55107329,63938.0,63937.0,0.014]
[1724539886537,1.42027329,63938.0,63931.0,0.04645113]
[1724539886733,1.42027329,63938.0,63915.0,0.078193]
[1724539886734,0.078182,63924.0,63922.0,0.04645113]
[1724539886937,0.178182,63924.0,63922.0,0.04646953]
[1724539887131,0.178182,63924.0,63919.0,0.14126953]
[1724539887545,0.178222,63924.0,63919.0,0.0948]
[1724539888146,0.179222,63924.0,63923.0,0.0086]
[1724539888933,0.180222,63924.0,63923.0,0.0126]
[1724539892245,0.19022873,63924.0,63923.0,0.0126]
[1724539910259,0.55102873,63924.0,63923.0,0.0126]
[1724539910456,0.62921073,63924.0,63923.0,0.0126]
[1724539912062,1.09853073,63924.0,63923.0,0.0126]
[1724539913360,0.73773073,63924.0,63923.0,0.0126]
[1724539913554,0.26841073,63924.0,63923.0,0.0126]
[1724539913751,0.62921073,63924.0,63923.0,0.0126]
[1724539913957,0.45102873,63924.0,63923.0,0.0126]
[1724539914155,0.55102873,63924.0,63923.0,0.0126]
[1724539917274,0.45102873,63924.0,63923.0,0.05906953]
[1724539917456,0.11204673,63924.0,63923.0,0.0605]
[1724539917956,0.11204673,63924.0,63923.0,0.1224762]
[1724539918352,0.10204,63924.0,63923.0,0.138683]
[1724539918752,0.10204,63924.0,63923.0,0.608003]
[1724539919355,0.00023464,63930.0,63923.0,1.39062]
[1724539919557,0.10023464,63930.0,63928.0,0.06205589]
[1724539919757,0.10023464,63930.0,63929.0,0.18973189]
[1724539919956,0.00023464,63930.0,63929.0,0.18973189]
[1724539920158,0.1,63937.0,63929.0,1.37958]
[1724539920462,0.078163,63940.0,63936.0,0.06202687]
[1724539920666,0.3608,63941.0,63931.0,0.17747025]
[1724539920667,0.3608,63941.0,63938.0,0.04651077]
[1724539920865,0.078165,63938.0,63937.0,0.09461077]
[1724539921068,0.078165,63938.0,63937.0,0.0481]
[1724539921263,0.178165,63938.0,63937.0,0.0481]
[1724539921763,0.07817,63934.0,63931.0,0.00023464]
[1724539922065,0.1,63932.0,63931.0,0.11036151]
[1724539922259,0.1,63932.0,63931.0,0.04833464]
[1724539923060,0.1,63932.0,63931.0,0.00023464]
[1724539923772,0.178172,63932.0,63931.0,0.00023464]
[1724539923973,0.178172,63932.0,63931.0,0.00323464]
[1724539927376,0.178172,63932.0,63931.0,0.00327464]
[1724539928875,0.538972,63932.0,63931.0,0.00327464]
[1724539930867,0.617144,63932.0,63931.0,0.00327464]
[1724539931066,0.617144,63932.0,63923.0,0.00064]
[1724539931067,0.078182,63924.0,63923.0,0.00064]
[1724539931268,0.438982,63924.0,63923.0,0.00064]
[1724539931673,0.438982,63924.0,63921.0,0.0001948]
[1724539931674,0.078185,63922.0,63921.0,0.0001948]
[1724539931875,0.178185,63922.0,63921.0,0.0001948]
[1724539933380,0.179185,63922.0,63921.0,0.0051948]
[1724539934271,0.18913288,63922.0,63921.0,0.0051948]
[1724539938979,0.54993288,63922.0,63921.0,0.0051948]
[1724539939679,0.18913288,63922.0,63921.0,0.0051948]
[1724539939886,0.54993288,63922.0,63921.0,0.0051948]
[1724539940080,0.54997288,63922.0,63921.0,0.0051948]
[1724539944591,0.55197288,63922.0,63921.0,0.0051948]
[1724539945187,0.64115788,63922.0,63921.0,0.0051948]
[1724539945583,0.64015788,63922.0,63921.0,0.0001948]
[1724539946291,0.078196,63913.0,63912.0,0.0476]
[1724539946493,0.178196,63913.0,63912.0,0.0476]
[1724539946988,0.178236,63913.0,63912.0,0.0476]
[1724539947495,0.17838107,63913.0,63912.0,0.0476]
[1724539948991,0.18838107,63913.0,63912.0,0.0476]
[1724539953884,0.19860361,63913.0,63912.0,0.0476]
[1724539957890,0.55940361,63913.0,63912.0,0.0476]
[1724539959702,0.55940361,63913.0,63912.0,0.09407447]
[1724539960302,0.55940361,63913.0,63912.0,0.0476]
[1724539961597,0.19860361,63913.0,63912.0,0.0476]
[1724539962395,0.19860361,63913.0,63912.0,0.10962687]
[1724539962698,0.19860361,63913.0,63912.0,0.0476]
[1724539965096,0.19860361,63913.0,63912.0,0.10962687]
[1724539967507,0.19860361,63913.0,63912.0,0.18782387]
[1724539967810,0.09860361,63913.0,63912.0,0.18782387]
[1724539968107,0.19860361,63913.0,63912.0,0.18782387]
[1724539969208,0.19860361,63913.0,63912.0,0.125797]
[1724539969508,0.19860361,63913.0,63912.0,0.18793777]
[1724539969812,0.19860361,63913.0,63912.0,0.125797]
[1724539971295,0.19860361,63913.0,63912.0,1.095197]
[1724539971296,0.01,63913.0,63912.0,1.095197]
[1724539971498,0.1,63923.0,63912.0,1.25387186]
[1724539971703,0.1,63923.0,63922.0,0.3608]
[1724539971998,0.1,63923.0,63922.0,0.438985]
[1724539972400,0.10004973,63923.0,63922.0,0.438985]
[1724539972602,0.10404973,63923.0,63922.0,0.438985]
[1724539973303,0.10404973,63923.0,63922.0,0.50104042]
[1724539974107,0.11404973,63923.0,63922.0,0.438985]
[1724539974311,0.11404973,63923.0,63922.0,0.50402622]
[1724539974512,0.10004973,63923.0,63922.0,0.1056294]
[1724539974712,0.10004973,63923.0,63922.0,0.16867062]
[1724539974916,0.17823273,63923.0,63922.0,0.1036294]
[1724539975211,0.17823273,63923.0,63922.0,0.082185]
[1724539975416,0.17823273,63923.0,63922.0,0.004]
[1724539975805,0.17823273,63923.0,63922.0,0.02544529]
[1724539976110,0.17823273,63923.0,63922.0,0.02844529]
[1724539976912,0.17823273,63923.0,63922.0,0.09048651]
[1724539977116,0.17823273,63923.0,63922.0,0.02844529]
[1724539978009,0.17923273,63923.0,63922.0,0.02544529]
[1724539978310,0.18223273,63923.0,63922.0,0.02444529]
[1724539980818,0.18223273,63923.0,63922.0,0.10263029]
[1724539981116,0.18223273,63923.0,63922.0,0.078185]
[1724539981312,0.18223273,63923.0,63922.0,0.10262881]
[1724539982023,0.18223273,63923.0,63922.0,0.46342881]
[1724539982315,0.18223273,63923.0,63922.0,0.438985]
[1724539983609,0.18223273,63923.0,63922.0,0.48550481]
[1724539985012,0.08223273,63923.0,63922.0,0.48550481]
[1724539985214,0.18223273,63923.0,63922.0,0.48550481]
[1724539985921,0.18223273,63923.0,63922.0,0.12470481]
[1724539986220,0.18223273,63923.0,63922.0,0.48550481]
[1724539986823,0.18223273,63923.0,63922.0,0.12470481]
[1724539987122,0.18223273,63923.0,63922.0,0.48550481]
[1724539989321,0.18223273,63923.0,63922.0,0.12470481]
[1724539989526,0.18223273,63923.0,63922.0,0.48550481]
[1724539990930,0.18223273,63923.0,63922.0,0.12470481]
[1724539991527,0.18223273,63923.0,63922.0,0.48550481]
[1724539991930,0.18223273,63923.0,63922.0,0.078185]
[1724539993229,0.078185,63922.0,63921.0,0.04651981]
[1724539993423,0.10404973,63923.0,63916.0,0.04652832]
[1724539993732,0.1,63919.0,63914.0,0.12472232]
[1724539993934,0.1,63915.0,63914.0,0.078194]
[1724539994532,0.1,63915.0,63912.0,0.06208122]
[1724539994533,0.10004,63915.0,63912.0,0.06208122]
[1724539994723,0.178233,63915.0,63913.0,0.04655858]
[1724539994922,0.078194,63914.0,63913.0,0.04655858]